[Event "Titled Tuesday Blitz November 07 Early 2023"]
[White "Buchenau, Frank"]
[Black "Rodriguez Dominguez, Melissa"]
[WhiteFideId "4604350"]
[BlackFideId "3517560"]
[WhiteElo "2453"]
[BlackElo "2232"]
[Result "0-1"]
[Round "9"]
[TimeControl "180+1"]
[Date "2023.11.07"]
[WhiteClock "0:00:10"]
[BlackClock "0:00:18"]
[Board "140"]

1. e4 {[%clk 0:03:00]}  c5 {[%clk 0:02:59]} 2. Nf3 {[%clk 0:03:01]}  e6 {[%clk 0:02:59]} 3. d4 {[%clk 0:03:00]}  cxd4 {[%clk 0:02:59]} 4. Nxd4 {[%clk 0:03:01]}  Nc6 {[%clk 0:03:00]} 5. Nc3 {[%clk 0:03:01]}  Qc7 {[%clk 0:03:00]} 6. Be3 {[%clk 0:03:00]}  a6 {[%clk 0:03:01]} 7. Bd3 {[%clk 0:03:00]}  Nf6 {[%clk 0:03:00]} 8. O-O {[%clk 0:02:59]}  b5 {[%clk 0:02:58]} 9. Nxc6 {[%clk 0:02:58]}  Qxc6 {[%clk 0:02:58]} 10. a3 {[%clk 0:02:57]}  Bb7 {[%clk 0:02:56]} 11. f4 {[%clk 0:02:54]}  d5 {[%clk 0:02:48]} 12. exd5 {[%clk 0:02:31]}  Nxd5 {[%clk 0:02:45]} 13. Nxd5 {[%clk 0:02:29]}  Qxd5 {[%clk 0:02:44]} 14. Qe2 {[%clk 0:02:26]}  Bc5 {[%clk 0:02:43]} 15. Bxc5 {[%clk 0:02:15]}  Qxc5+ {[%clk 0:02:44]} 16. Kh1 {[%clk 0:02:11]}  O-O {[%clk 0:02:45]} 17. f5 {[%clk 0:02:08]}  exf5 {[%clk 0:02:36]} 18. Rxf5 {[%clk 0:02:08]}  Qc6 {[%clk 0:02:36]} 19. Raf1 {[%clk 0:01:59]}  g6 {[%clk 0:02:06]} 20. Rf6 {[%clk 0:01:56]}  Qd5 {[%clk 0:02:05]} 21. c4 {[%clk 0:01:48]}  Qg5 {[%clk 0:01:30]} 22. cxb5 {[%clk 0:01:17]}  axb5 {[%clk 0:01:30]} 23. Qf2 {[%clk 0:00:56]}  Rad8 {[%clk 0:00:40]} 24. Bxb5 {[%clk 0:00:32]}  Rd2 {[%clk 0:00:30]} 25. Be2 {[%clk 0:00:31]}  Rxb2 {[%clk 0:00:20]} 26. Re1 {[%clk 0:00:15]}  Bxg2+ {[%clk 0:00:18]} 27. Qxg2 {[%clk 0:00:10]}  Qxf6 {[%clk 0:00:18]} 0-1


[Site "https://www.chess.com"]

[Event "Titled Tuesday Blitz November 07 Early 2023"]
[White "Dwilewicz, Katarzyna"]
[Black "Smirnov, Timofey"]
[WhiteFideId "1148486"]
[BlackFideId "24176427"]
[WhiteElo "2355"]
[BlackElo "2186"]
[Result "1-0"]
[Round "9"]
[TimeControl "180+1"]
[Date "2023.11.07"]
[WhiteClock "0:01:45"]
[BlackClock "0:00:00"]
[Board "142"]

1. e4 {[%clk 0:02:56]}  e5 {[%clk 0:02:59]} 2. Nf3 {[%clk 0:02:50]}  Nf6 {[%clk 0:02:59]} 3. Nc3 {[%clk 0:02:49]}  Bb4 {[%clk 0:02:59]} 4. Nxe5 {[%clk 0:02:49]}  O-O {[%clk 0:02:58]} 5. Nd3 {[%clk 0:02:49]}  Bxc3 {[%clk 0:02:57]} 6. dxc3 {[%clk 0:02:49]}  Nxe4 {[%clk 0:02:57]} 7. Nf4 {[%clk 0:02:49]}  Re8 {[%clk 0:02:47]} 8. Be2 {[%clk 0:02:49]}  Nc6 {[%clk 0:02:44]} 9. c4 {[%clk 0:02:48]}  d6 {[%clk 0:02:42]} 10. O-O {[%clk 0:02:48]}  Nf6 {[%clk 0:02:39]} 11. a4 {[%clk 0:02:44]}  a5 {[%clk 0:02:36]} 12. Ra3 {[%clk 0:02:45]}  Be6 {[%clk 0:02:13]} 13. Rg3 {[%clk 0:02:42]}  Ne4 {[%clk 0:02:02]} 14. Re3 {[%clk 0:02:38]}  Nf6 {[%clk 0:01:53]} 15. b3 {[%clk 0:02:36]}  Bf5 {[%clk 0:01:39]} 16. Bb2 {[%clk 0:02:27]}  Rxe3 {[%clk 0:01:33]} 17. fxe3 {[%clk 0:02:27]}  Ne4 {[%clk 0:01:23]} 18. Bd3 {[%clk 0:02:21]}  Ne5 {[%clk 0:01:12]} 19. Nd5 {[%clk 0:02:16]}  Nxd3 {[%clk 0:01:09]} 20. cxd3 {[%clk 0:02:16]}  Qg5 {[%clk 0:00:47]} 21. dxe4 {[%clk 0:02:13]}  Bxe4 {[%clk 0:00:48]} 22. Qd2 {[%clk 0:02:02]}  c6 {[%clk 0:00:45]} 23. Nf4 {[%clk 0:01:59]}  d5 {[%clk 0:00:42]} 24. c5 {[%clk 0:01:52]}  Re8 {[%clk 0:00:35]} 25. Bc3 {[%clk 0:01:51]}  Qd8 {[%clk 0:00:22]} 26. Bxa5 {[%clk 0:01:50]}  Qd7 {[%clk 0:00:18]} 27. Bc3 {[%clk 0:01:50]}  f6 {[%clk 0:00:04]} 28. Qf2 {[%clk 0:01:48]}  Qc8 {[%clk 0:00:02]} 29. Qg3 {[%clk 0:01:46]}  Qd7 {[%clk 0:00:02]} 30. Nh5 {[%clk 0:01:46]}  Qf7 {[%clk 0:00:02]} 31. Nxf6+ {[%clk 0:01:44]}  Kh8 {[%clk 0:00:00]} 32. Nxe8 {[%clk 0:01:45]} 1-0


[Site "https://www.chess.com"]

[Event "Titled Tuesday Blitz November 07 Early 2023"]
[White "ChessDojo"]
[Black "Zampronha, Wladimir Camilo"]
[BlackFideId "2103087"]
[WhiteElo "2137"]
[BlackElo "2300"]
[Result "0-1"]
[Round "9"]
[TimeControl "180+1"]
[Date "2023.11.07"]
[WhiteClock "0:02:33"]
[BlackClock "0:02:33"]
[Board "145"]

1. d4 {[%clk 0:02:52]}  Nf6 {[%clk 0:02:58]} 2. c4 {[%clk 0:02:52]}  e6 {[%clk 0:02:57]} 3. g3 {[%clk 0:02:51]}  c5 {[%clk 0:02:53]} 4. Nf3 {[%clk 0:02:50]}  cxd4 {[%clk 0:02:53]} 5. Nxd4 {[%clk 0:02:50]}  d5 {[%clk 0:02:51]} 6. cxd5 {[%clk 0:02:51]}  Qxd5 {[%clk 0:02:46]} 7. Nf3 {[%clk 0:02:50]}  Qxd1+ {[%clk 0:02:44]} 8. Kxd1 {[%clk 0:02:51]}  Bc5 {[%clk 0:02:42]} 9. e3 {[%clk 0:02:47]}  O-O {[%clk 0:02:40]} 10. Bg2 {[%clk 0:02:47]}  Rd8+ {[%clk 0:02:34]} 11. Ke2 {[%clk 0:02:46]}  Nc6 {[%clk 0:02:32]} 12. a3 {[%clk 0:02:45]}  b6 {[%clk 0:02:32]} 13. Ne5 {[%clk 0:02:41]}  Ba6+ {[%clk 0:02:32]} 14. Ke1 {[%clk 0:02:33]}  Nxe5 {[%clk 0:02:33]} 0-1


[Site "https://www.chess.com"]

[Event "Titled Tuesday Blitz November 07 Early 2023"]
[White "Barbot, Pierre"]
[Black "Yushko, Olga"]
[WhiteFideId "663727"]
[BlackFideId "14114500"]
[WhiteElo "2282"]
[BlackElo "2093"]
[Result "1/2-1/2"]
[Round "9"]
[TimeControl "180+1"]
[Date "2023.11.07"]
[WhiteClock "0:00:03"]
[BlackClock "0:01:06"]
[Board "147"]

1. e4 {[%clk 0:03:00]}  e6 {[%clk 0:02:59]} 2. d4 {[%clk 0:03:00]}  d5 {[%clk 0:03:00]} 3. Nc3 {[%clk 0:03:00]}  Nf6 {[%clk 0:03:00]} 4. e5 {[%clk 0:03:00]}  Nfd7 {[%clk 0:03:01]} 5. f4 {[%clk 0:02:59]}  c5 {[%clk 0:03:01]} 6. Nf3 {[%clk 0:02:59]}  Nc6 {[%clk 0:03:02]} 7. Be3 {[%clk 0:02:54]}  Qb6 {[%clk 0:03:02]} 8. Qd2 {[%clk 0:02:06]}  cxd4 {[%clk 0:02:59]} 9. Nxd4 {[%clk 0:02:05]}  Nxd4 {[%clk 0:02:54]} 10. Bxd4 {[%clk 0:02:05]}  Bc5 {[%clk 0:02:51]} 11. O-O-O {[%clk 0:01:54]}  Bxd4 {[%clk 0:02:48]} 12. Qxd4 {[%clk 0:01:55]}  Qxd4 {[%clk 0:02:48]} 13. Rxd4 {[%clk 0:01:55]}  Ke7 {[%clk 0:02:39]} 14. Bd3 {[%clk 0:01:39]}  Nc5 {[%clk 0:02:37]} 15. Nb5 {[%clk 0:01:27]}  Nxd3+ {[%clk 0:02:33]} 16. Rxd3 {[%clk 0:01:27]}  Bd7 {[%clk 0:02:34]} 17. Nd6 {[%clk 0:01:27]}  Bc6 {[%clk 0:02:33]} 18. Rg3 {[%clk 0:01:08]}  g6 {[%clk 0:02:22]} 19. h4 {[%clk 0:01:01]}  Raf8 {[%clk 0:02:06]} 20. h5 {[%clk 0:00:57]}  gxh5 {[%clk 0:02:05]} 21. Rxh5 {[%clk 0:00:53]}  h6 {[%clk 0:02:01]} 22. Rgh3 {[%clk 0:00:20]}  Rhg8 {[%clk 0:02:01]} 23. g3 {[%clk 0:00:19]}  Rg7 {[%clk 0:01:56]} 24. Rxh6 {[%clk 0:00:18]}  Rfg8 {[%clk 0:01:56]} 25. Rh7 {[%clk 0:00:17]}  f6 {[%clk 0:01:38]} 26. Kd2 {[%clk 0:00:13]}  fxe5 {[%clk 0:01:37]} 27. fxe5 {[%clk 0:00:14]}  Kd8 {[%clk 0:01:27]} 28. Rxg7 {[%clk 0:00:12]}  Rxg7 {[%clk 0:01:27]} 29. Ke3 {[%clk 0:00:12]}  Rg5 {[%clk 0:01:23]} 30. Kf4 {[%clk 0:00:12]}  Rg8 {[%clk 0:01:19]} 31. g4 {[%clk 0:00:08]}  d4 {[%clk 0:01:18]} 32. Rh7 {[%clk 0:00:04]}  Rf8+ {[%clk 0:01:17]} 33. Kg5 {[%clk 0:00:04]}  Rg8+ {[%clk 0:01:16]} 34. Kh4 {[%clk 0:00:03]}  Be4 {[%clk 0:01:14]} 35. Rf7 {[%clk 0:00:01]}  Bxc2 {[%clk 0:01:12]} 36. g5 {[%clk 0:00:01]}  Rh8+ {[%clk 0:01:09]} 37. Kg4 {[%clk 0:00:01]}  Bd1+ {[%clk 0:01:09]} 38. Kf4 {[%clk 0:00:01]}  Rh4+ {[%clk 0:01:09]} 39. Kg3 {[%clk 0:00:01]}  Rg4+ {[%clk 0:01:09]} 40. Kf2 {[%clk 0:00:02]}  Rxg5 {[%clk 0:01:09]} 41. Rxb7 {[%clk 0:00:02]}  Rxe5 {[%clk 0:01:07]} 42. Nf7+ {[%clk 0:00:02]}  Kc8 {[%clk 0:01:07]} 43. Nd6+ {[%clk 0:00:02]}  Kd8 {[%clk 0:01:06]} 44. Nf7+ {[%clk 0:00:03]}  Kc8 {[%clk 0:01:06]} 45. Nd6+ {[%clk 0:00:03]}  Kd8 {[%clk 0:01:06]} 1/2-1/2


[Site "https://www.chess.com"]

[Event "Titled Tuesday Blitz November 07 Early 2023"]
[White "Sviridova, Vlada"]
[Black "Todev, Simeon"]
[WhiteFideId "24109606"]
[BlackFideId "2925133"]
[WhiteElo "2177"]
[BlackElo "2352"]
[Result "1-0"]
[Round "9"]
[TimeControl "180+1"]
[Date "2023.11.07"]
[WhiteClock "0:00:05"]
[BlackClock "0:00:00"]
[Board "150"]

1. d4 {[%clk 0:03:00]}  Nf6 {[%clk 0:02:45]} 2. c4 {[%clk 0:03:00]}  e6 {[%clk 0:02:44]} 3. Nf3 {[%clk 0:03:00]}  d5 {[%clk 0:02:33]} 4. Nc3 {[%clk 0:02:59]}  Bb4 {[%clk 0:02:26]} 5. Bg5 {[%clk 0:02:57]}  O-O {[%clk 0:02:15]} 6. e3 {[%clk 0:02:50]}  c5 {[%clk 0:02:10]} 7. dxc5 {[%clk 0:02:39]}  Qa5 {[%clk 0:02:07]} 8. Bxf6 {[%clk 0:02:36]}  gxf6 {[%clk 0:02:03]} 9. cxd5 {[%clk 0:02:21]}  exd5 {[%clk 0:01:55]} 10. Rc1 {[%clk 0:02:02]}  Qxa2 {[%clk 0:01:31]} 11. Qc2 {[%clk 0:01:30]}  Nc6 {[%clk 0:01:00]} 12. Bd3 {[%clk 0:00:46]}  d4 {[%clk 0:00:54]} 13. exd4 {[%clk 0:00:19]}  Re8+ {[%clk 0:00:54]} 14. Kd1 {[%clk 0:00:19]}  Qa5 {[%clk 0:00:45]} 15. Ne4 {[%clk 0:00:16]}  Kg7 {[%clk 0:00:38]} 16. Nd6 {[%clk 0:00:16]}  Bg4 {[%clk 0:00:32]} 17. Nxe8+ {[%clk 0:00:13]}  Rxe8 {[%clk 0:00:33]} 18. h3 {[%clk 0:00:13]}  Nxd4 {[%clk 0:00:27]} 19. Qc4 {[%clk 0:00:09]}  Bxf3+ {[%clk 0:00:10]} 20. gxf3 {[%clk 0:00:10]}  Nxf3 {[%clk 0:00:06]} 21. Qg4+ {[%clk 0:00:09]}  Ng5 {[%clk 0:00:06]} 22. h4 {[%clk 0:00:08]}  Bd2 {[%clk 0:00:05]} 23. hxg5 {[%clk 0:00:05]}  Bxc1 {[%clk 0:00:00]} 24. gxf6+ {[%clk 0:00:05]} 1-0


[Site "https://www.chess.com"]

[Event "Titled Tuesday Blitz November 07 Early 2023"]
[White "parintele_chess"]
[Black "katharinareinecke"]
[WhiteElo "2221"]
[BlackElo "1918"]
[Result "1-0"]
[Round "9"]
[TimeControl "180+1"]
[Date "2023.11.07"]
[WhiteClock "0:00:25"]
[BlackClock "0:01:18"]
[Board "151"]

1. d4 {[%clk 0:03:00]}  c6 {[%clk 0:03:00]} 2. Bf4 {[%clk 0:02:58]}  d5 {[%clk 0:03:00]} 3. Nf3 {[%clk 0:02:59]}  Nf6 {[%clk 0:03:00]} 4. e3 {[%clk 0:02:51]}  e6 {[%clk 0:02:59]} 5. c4 {[%clk 0:02:51]}  Be7 {[%clk 0:02:51]} 6. Nc3 {[%clk 0:02:49]}  O-O {[%clk 0:02:50]} 7. Be2 {[%clk 0:02:49]}  dxc4 {[%clk 0:02:48]} 8. Bxc4 {[%clk 0:02:47]}  Nbd7 {[%clk 0:02:35]} 9. O-O {[%clk 0:02:39]}  Nb6 {[%clk 0:02:35]} 10. Bd3 {[%clk 0:02:38]}  Nbd5 {[%clk 0:02:34]} 11. Bg3 {[%clk 0:02:32]}  b6 {[%clk 0:02:24]} 12. a3 {[%clk 0:02:27]}  Bb7 {[%clk 0:02:24]} 13. e4 {[%clk 0:02:15]}  Nxc3 {[%clk 0:02:22]} 14. bxc3 {[%clk 0:02:15]}  c5 {[%clk 0:02:22]} 15. e5 {[%clk 0:02:00]}  Nd5 {[%clk 0:02:16]} 16. Qc2 {[%clk 0:01:55]}  Rc8 {[%clk 0:02:08]} 17. Bxh7+ {[%clk 0:01:54]}  Kh8 {[%clk 0:02:07]} 18. dxc5 {[%clk 0:01:39]}  Rxc5 {[%clk 0:02:01]} 19. c4 {[%clk 0:01:24]}  Qc7 {[%clk 0:01:53]} 20. Bd3 {[%clk 0:01:20]}  b5 {[%clk 0:01:40]} 21. Qe2 {[%clk 0:00:27]}  bxc4 {[%clk 0:01:38]} 22. Bc2 {[%clk 0:00:27]}  Nc3 {[%clk 0:01:34]} 23. Qe3 {[%clk 0:00:26]}  Nd5 {[%clk 0:01:22]} 24. Qe4 {[%clk 0:00:25]}  Ra5 {[%clk 0:01:18]} 25. Qh7# {[%clk 0:00:25]} 1-0


[Site "https://www.chess.com"]

[Event "Titled Tuesday Blitz November 07 Early 2023"]
[White "Minina, Veronika"]
[Black "Gyulamiryan-koryun"]
[WhiteFideId "4174780"]
[WhiteElo "2286"]
[BlackElo "1884"]
[Result "1-0"]
[Round "9"]
[TimeControl "180+1"]
[Date "2023.11.07"]
[WhiteClock "0:00:26"]
[BlackClock "0:00:59"]
[Board "154"]

1. Nf3 {[%clk 0:02:54]}  Nf6 {[%clk 0:02:54]} 2. c4 {[%clk 0:02:50]}  g6 {[%clk 0:02:53]} 3. g3 {[%clk 0:02:51]}  Bg7 {[%clk 0:02:53]} 4. Bg2 {[%clk 0:02:52]}  O-O {[%clk 0:02:52]} 5. O-O {[%clk 0:02:53]}  c6 {[%clk 0:02:52]} 6. Nc3 {[%clk 0:02:54]}  e6 {[%clk 0:02:53]} 7. d4 {[%clk 0:02:53]}  d5 {[%clk 0:02:53]} 8. b3 {[%clk 0:02:43]}  Ne4 {[%clk 0:02:48]} 9. Bb2 {[%clk 0:02:37]}  Nxc3 {[%clk 0:02:46]} 10. Bxc3 {[%clk 0:02:30]}  Nd7 {[%clk 0:02:41]} 11. Qc2 {[%clk 0:02:19]}  b5 {[%clk 0:02:39]} 12. e4 {[%clk 0:02:07]}  a5 {[%clk 0:02:35]} 13. Ne5 {[%clk 0:02:03]}  Nxe5 {[%clk 0:02:29]} 14. dxe5 {[%clk 0:01:59]}  dxc4 {[%clk 0:02:25]} 15. bxc4 {[%clk 0:01:56]}  b4 {[%clk 0:02:23]} 16. Bb2 {[%clk 0:01:53]}  c5 {[%clk 0:02:18]} 17. f4 {[%clk 0:01:47]}  Bb7 {[%clk 0:02:12]} 18. f5 {[%clk 0:01:47]}  exf5 {[%clk 0:02:10]} 19. exf5 {[%clk 0:01:48]}  Bxg2 {[%clk 0:02:09]} 20. Qxg2 {[%clk 0:01:44]}  Qd3 {[%clk 0:01:56]} 21. f6 {[%clk 0:01:30]}  Bh6 {[%clk 0:01:55]} 22. e6 {[%clk 0:01:26]}  Qe3+ {[%clk 0:01:45]} 23. Kh1 {[%clk 0:01:26]}  Qxe6 {[%clk 0:01:45]} 24. Rae1 {[%clk 0:01:22]}  Qxc4 {[%clk 0:01:44]} 25. Re7 {[%clk 0:01:19]}  Rae8 {[%clk 0:01:42]} 26. Rfe1 {[%clk 0:01:16]}  Rxe7 {[%clk 0:01:36]} 27. fxe7 {[%clk 0:01:17]}  Re8 {[%clk 0:01:35]} 28. Qb7 {[%clk 0:00:38]}  Bd2 {[%clk 0:01:23]} 29. Qc6 {[%clk 0:00:29]}  Rxe7 {[%clk 0:01:05]} 30. Qc8+ {[%clk 0:00:26]}  Re8 {[%clk 0:00:59]} 31. Qxe8# {[%clk 0:00:26]} 1-0


[Site "https://www.chess.com"]

[Event "Titled Tuesday Blitz November 07 Early 2023"]
[White "Fernandez Hernandez, Gerardo"]
[Black "Yeritsyan, Hayk"]
[WhiteFideId "2207400"]
[BlackFideId "13307320"]
[WhiteElo "2118"]
[BlackElo "2440"]
[Result "1-0"]
[Round "9"]
[TimeControl "180+1"]
[Date "2023.11.07"]
[WhiteClock "0:00:06"]
[BlackClock "0:00:25"]
[Board "156"]

1. e4 {[%clk 0:03:00]}  d5 {[%clk 0:02:58]} 2. exd5 {[%clk 0:03:00]}  Nf6 {[%clk 0:02:58]} 3. Bb5+ {[%clk 0:02:59]}  Bd7 {[%clk 0:02:55]} 4. Be2 {[%clk 0:03:00]}  Nxd5 {[%clk 0:02:55]} 5. d4 {[%clk 0:03:00]}  c5 {[%clk 0:02:54]} 6. dxc5 {[%clk 0:02:51]}  e6 {[%clk 0:02:54]} 7. c4 {[%clk 0:02:49]}  Nf6 {[%clk 0:02:50]} 8. Be3 {[%clk 0:02:42]}  Nc6 {[%clk 0:02:43]} 9. Nc3 {[%clk 0:02:37]}  Qa5 {[%clk 0:02:30]} 10. a3 {[%clk 0:02:16]}  O-O-O {[%clk 0:02:02]} 11. b4 {[%clk 0:02:14]}  Qc7 {[%clk 0:02:01]} 12. Nb5 {[%clk 0:02:13]}  Qb8 {[%clk 0:02:01]} 13. Nd6+ {[%clk 0:01:50]}  Bxd6 {[%clk 0:02:00]} 14. cxd6 {[%clk 0:01:50]}  Ne5 {[%clk 0:01:57]} 15. Nf3 {[%clk 0:01:39]}  Neg4 {[%clk 0:01:48]} 16. Bf4 {[%clk 0:01:38]}  Rhe8 {[%clk 0:01:42]} 17. Ne5 {[%clk 0:01:20]}  Nxe5 {[%clk 0:01:08]} 18. Bxe5 {[%clk 0:01:21]}  Ne4 {[%clk 0:01:08]} 19. c5 {[%clk 0:00:58]}  f6 {[%clk 0:01:06]} 20. Bb2 {[%clk 0:00:56]}  Bc6 {[%clk 0:01:05]} 21. O-O {[%clk 0:00:55]}  b6 {[%clk 0:01:05]} 22. Bf3 {[%clk 0:00:50]}  Qb7 {[%clk 0:01:03]} 23. Rc1 {[%clk 0:00:44]}  b5 {[%clk 0:01:01]} 24. Re1 {[%clk 0:00:41]}  g5 {[%clk 0:01:00]} 25. Bxe4 {[%clk 0:00:33]}  Bxe4 {[%clk 0:01:00]} 26. Bxf6 {[%clk 0:00:26]}  Bxg2 {[%clk 0:00:53]} 27. Bxd8 {[%clk 0:00:22]}  Rxd8 {[%clk 0:00:46]} 28. c6 {[%clk 0:00:19]}  Bxc6 {[%clk 0:00:45]} 29. Qc2 {[%clk 0:00:19]}  Kd7 {[%clk 0:00:45]} 30. Qxc6+ {[%clk 0:00:19]}  Qxc6 {[%clk 0:00:45]} 31. Rxc6 {[%clk 0:00:20]}  Kxc6 {[%clk 0:00:46]} 32. Rxe6 {[%clk 0:00:20]}  Kd5 {[%clk 0:00:46]} 33. Re7 {[%clk 0:00:18]}  Rxd6 {[%clk 0:00:46]} 34. Rxa7 {[%clk 0:00:16]}  h5 {[%clk 0:00:45]} 35. Rg7 {[%clk 0:00:15]}  Kc4 {[%clk 0:00:40]} 36. Rxg5 {[%clk 0:00:14]}  Kb3 {[%clk 0:00:39]} 37. Rxh5 {[%clk 0:00:13]}  Rb6 {[%clk 0:00:40]} 38. Rh3+ {[%clk 0:00:12]}  Ka4 {[%clk 0:00:40]} 39. Rg3 {[%clk 0:00:12]}  Rc6 {[%clk 0:00:38]} 40. Kg2 {[%clk 0:00:13]}  Rc2 {[%clk 0:00:37]} 41. Rg5 {[%clk 0:00:09]}  Ra2 {[%clk 0:00:35]} 42. h4 {[%clk 0:00:08]}  Rxa3 {[%clk 0:00:36]} 43. h5 {[%clk 0:00:08]}  Rd3 {[%clk 0:00:36]} 44. Rg4 {[%clk 0:00:07]}  Rd5 {[%clk 0:00:34]} 45. Rh4 {[%clk 0:00:07]}  Rg5+ {[%clk 0:00:34]} 46. Kh3 {[%clk 0:00:07]}  Rg7 {[%clk 0:00:35]} 47. f3 {[%clk 0:00:07]}  Kb3 {[%clk 0:00:34]} 48. Rg4 {[%clk 0:00:07]}  Rh7 {[%clk 0:00:34]} 49. Kh4 {[%clk 0:00:07]}  Kc3 {[%clk 0:00:34]} 50. Kg5 {[%clk 0:00:07]}  Rf7 {[%clk 0:00:33]} 51. Kg6 {[%clk 0:00:07]}  Rxf3 {[%clk 0:00:33]} 52. Rh4 {[%clk 0:00:07]}  Rf4 {[%clk 0:00:25]} 53. Rxf4 {[%clk 0:00:06]} 1-0


[Site "https://www.chess.com"]

[Event "Titled Tuesday Blitz November 07 Early 2023"]
[White "Bluebaum, Matthias"]
[Black "Le, Quang Liem"]
[WhiteFideId "24651516"]
[BlackFideId "12401137"]
[WhiteElo "3079"]
[BlackElo "3071"]
[Result "0-1"]
[Round "10"]
[TimeControl "180+1"]
[Date "2023.11.07"]
[WhiteClock "0:00:21"]
[BlackClock "0:00:10"]
[Board "2"]

1. d4 {[%clk 0:03:00]}  d5 {[%clk 0:03:00]} 2. c4 {[%clk 0:03:00]}  c6 {[%clk 0:03:01]} 3. Nf3 {[%clk 0:03:01]}  Nf6 {[%clk 0:03:01]} 4. Nc3 {[%clk 0:03:02]}  e6 {[%clk 0:03:00]} 5. Qc2 {[%clk 0:03:02]}  dxc4 {[%clk 0:02:55]} 6. e4 {[%clk 0:03:02]}  b5 {[%clk 0:02:56]} 7. Be2 {[%clk 0:03:03]}  Bb7 {[%clk 0:02:47]} 8. O-O {[%clk 0:03:03]}  Nbd7 {[%clk 0:02:47]} 9. b3 {[%clk 0:03:04]}  b4 {[%clk 0:02:39]} 10. e5 {[%clk 0:03:04]}  Nd5 {[%clk 0:02:40]} 11. Bg5 {[%clk 0:03:03]}  Qc7 {[%clk 0:02:28]} 12. Nxd5 {[%clk 0:03:02]}  cxd5 {[%clk 0:02:27]} 13. bxc4 {[%clk 0:03:01]}  h6 {[%clk 0:02:22]} 14. Bh4 {[%clk 0:02:58]}  dxc4 {[%clk 0:02:22]} 15. Bxc4 {[%clk 0:02:59]}  Be7 {[%clk 0:02:00]} 16. Bxe7 {[%clk 0:02:50]}  Kxe7 {[%clk 0:02:01]} 17. Qb3 {[%clk 0:02:49]}  a5 {[%clk 0:01:49]} 18. d5 {[%clk 0:02:43]}  exd5 {[%clk 0:01:40]} 19. Bxd5 {[%clk 0:02:44]}  Bxd5 {[%clk 0:00:58]} 20. Qxd5 {[%clk 0:02:45]}  Rac8 {[%clk 0:00:58]} 21. Nd4 {[%clk 0:02:32]}  Rhd8 {[%clk 0:00:58]} 22. e6 {[%clk 0:02:15]}  Ne5 {[%clk 0:00:39]} 23. Nf5+ {[%clk 0:01:45]}  Kf6 {[%clk 0:00:39]} 24. Qe4 {[%clk 0:01:42]}  Qc2 {[%clk 0:00:27]} 25. Qh4+ {[%clk 0:01:32]}  Kxf5 {[%clk 0:00:25]} 26. e7 {[%clk 0:01:33]}  Re8 {[%clk 0:00:24]} 27. Rae1 {[%clk 0:01:34]}  Ng6 {[%clk 0:00:17]} 28. Qh5+ {[%clk 0:01:34]}  Kf6 {[%clk 0:00:18]} 29. Qf3+ {[%clk 0:01:34]}  Qf5 {[%clk 0:00:18]} 30. Qg3 {[%clk 0:01:21]}  Rxe7 {[%clk 0:00:17]} 31. Re3 {[%clk 0:01:22]}  Nf4 {[%clk 0:00:15]} 32. Kh1 {[%clk 0:01:10]}  g5 {[%clk 0:00:15]} 33. Qf3 {[%clk 0:01:07]}  Ng6 {[%clk 0:00:13]} 34. Qe2 {[%clk 0:01:05]}  Qc5 {[%clk 0:00:12]} 35. Rxe7 {[%clk 0:01:02]}  Qxe7 {[%clk 0:00:12]} 36. Qa6+ {[%clk 0:01:00]}  Qe6 {[%clk 0:00:13]} 37. Qxa5 {[%clk 0:01:01]}  Qc4 {[%clk 0:00:13]} 38. Kg1 {[%clk 0:01:00]}  Kg7 {[%clk 0:00:13]} 39. g3 {[%clk 0:00:58]}  Rc5 {[%clk 0:00:13]} 40. Qd8 {[%clk 0:00:57]}  Ne5 {[%clk 0:00:13]} 41. f4 {[%clk 0:00:55]}  gxf4 {[%clk 0:00:11]} 42. Rxf4 {[%clk 0:00:56]}  Qe2 {[%clk 0:00:10]} 43. Qf6+ {[%clk 0:00:53]}  Kg8 {[%clk 0:00:11]} 44. Rf1 {[%clk 0:00:44]}  Rc2 {[%clk 0:00:10]} 45. Qxh6 {[%clk 0:00:21]}  Qg2# {[%clk 0:00:10]} 0-1


[Site "https://www.chess.com"]